Cogmind - Beta 13 @@@ ROGUE MODE // 2024.03.15 @ 16:46:09 Player: OctarineSorcerer Result: Destroyed by G-50 Soldier with Heavy Laser Performance ------------- Evolutions (4) 2000 Regions Visited (10) 2000 Robots Destroyed (50) 250 Value Destroyed (1509) 1509 Prototype IDs (5) 100 Alien Tech Used (0) 0 Bonus (516) 516 TOTAL SCORE: 6375 Bonus ------- High Alert Combat Kills 16 Entered DSFs 500 Cogmind --------- Core Integrity 0/850 Matter 161/300 Energy 484/500 System Corruption 8% Temperature Cool (57) Movement Flying (14) Location -6/Extension Parts ------- > --- POWER (1) -------- F-cell Engine > --- PROPULSION (4) --- Cooled Cesium-ion Thruster Cooled Cesium-ion Thruster Cooled Cesium-ion Thruster Cooled Cesium-ion Thruster > --- UTILITY (7) ------ Power Amplifier Advanced Weight Redist. System Enhanced Optical Array Improved Terrain Scanner Experimental Targeting Computer Hacking Suite System Shield > --- WEAPON (3) ------- Magnetic Acceleration Cannon > --- INVENTORY (5) ---- Light Ion Engine Fusion Compressor Q-thruster Advanced ECM Suite Improved Cloaking Device Peak State ------------ > --- POWER ------------ F-cell Engine > --- PROPULSION ------- Cooled Cesium-ion Thruster Cooled Cesium-ion Thruster Cooled Cesium-ion Thruster Cooled Cesium-ion Thruster > --- UTILITY ---------- Power Amplifier Advanced Weight Redist. System Enhanced Optical Array Improved Terrain Scanner Experimental Targeting Computer Hacking Suite System Shield > --- WEAPON ----------- Magnetic Acceleration Cannon > --- INVENTORY -------- Light Ion Engine Fusion Compressor Q-thruster Advanced ECM Suite Improved Cloaking Device [Rating: 65] Favorites ----------- Power Light Ion Engine Engine Light Ion Engine Power Core Fission Core Propulsion Compact Wheel Treads Light Treads Leg Aluminum Leg Wheel Compact Wheel Hover Unit Hover Unit Flight Unit Cooled Cesium-ion Thruster Utility Advanced Weight Redist. System Device Advanced Weight Redist. System Storage Small Storage Unit Processor Enhanced Optical Array Hackware System Shield Protection Light Armor Plating Weapon Impact Mace Energy Gun Particle Gun Ballistic Gun Assault Rifle Ballistic Cannon Improved Light Cannon Impact Weapon Impact Mace Slashing Weapon Katana Build | -11 -10 -9 -9 -8 -7 -7 -6 -6 -6 -6 ------- Run | Yrd Mat Mat Min Mat Fac DSF Fac Was Fac Ext Slots Evolved 8 | . . 2 . 2 2 . 2 . . . Power . | . . . . . . . . . . . Propulsion 2 | . . 2 . . . . . . . . Utility 5 | . . . . 2 2 . 1 . . . Weapon 1 | . . . . . . . 1 . . . Parts Attached 82 | 6 1 16 . 16 2 . 33 2 6 . Power 13 | 1 1 2 . 1 1 . 5 . 2 . Engine 8 | 1 1 1 . 1 1 . 1 . 2 . Core 5 | . . 1 . . . . 4 . . . Reactor . | . . . . . . . . . . . Propulsion 20 | 2 . 9 . . . . 7 1 1 . Treads 3 | . . 1 . . . . 2 . . . Leg 3 | 2 . 1 . . . . . . . . Wheel 2 | . . 2 . . . . . . . . Hover 2 | . . 2 . . . . . . . . Flight 10 | . . 3 . . . . 5 1 1 . Utility 27 | 1 . 1 . 8 . . 14 1 2 . Device 13 | . . 1 . 2 . . 9 . 1 . Storage 2 | 1 . . . 1 . . . . . . Processor 2 | . . . . . . . 1 1 . . Hackware 2 | . . . . . . . 1 . 1 . Protection 8 | . . . . 5 . . 3 . . . Artifact . | . . . . . . . . . . . Weapon 22 | 2 . 4 . 7 1 . 7 . 1 . Energy Gun 3 | 1 . . . . 1 . 1 . . . Energy Cannon . | . . . . . . . . . . . Ballistic Gun 10 | 1 . 3 . 5 . . 1 . . . Ballistic Cannon 5 | . . 1 . . . . 3 . 1 . Launcher . | . . . . . . . . . . . Special Weapon . | . . . . . . . . . . . Impact Weapon 2 | . . . . . . . 2 . . . Slashing Weapon 2 | . . . . 2 . . . . . . Piercing Weapon . | . . . . . . . . . . . Special Melee Weapon . | . . . . . . . . . . . Unidentified Prototypes 4 | . . . . . . . 2 1 1 . Parts Lost 31 | . . 4 . 12 . . 15 . . . Power 4 | . . 1 . . . . 3 . . . Propulsion 12 | . . 3 . 4 . . 5 . . . Utility 7 | . . . . 4 . . 3 . . . Weapon 8 | . . . . 4 . . 4 . . . Highest Loss Streak 12 | . . 4 . 12 . . 5 . . . To Critical Strikes . | . . . . . . . . . . . Average Slot Usage (%) 57 | . 85 79 100 84 12 15 35 44 71 86 Engine 4 | . 14 4 11 7 7 7 1 . 2 6 Core 1 | . . 6 . . . . 2 . . . Treads 1 | . . 3 . . . . 2 . . . Leg 3 | . 28 2 . . . . . . . . Wheel 3 | . . 7 22 14 . . . . . . Hover 3 | . . . 22 14 . . . . . . Flight 4 | . . 16 . . . . 1 13 22 26 Device 10 | . . 8 11 13 . . 11 13 15 20 Storage 4 | . 14 11 11 8 . . . . . . Processor 1 | . . . . . . . . 11 13 13 Hackware 2 | . . . . . . . 3 6 12 13 Protection 2 | . . . . 9 . . 1 . . . Energy Gun 3 | . 14 . . . 4 7 3 . . . Ballistic Gun 5 | . 14 14 11 11 . . . . . . Ballistic Cannon 1 | . . 2 11 3 . . . . 4 6 Impact Weapon 1 | . . . . . . . 4 . . . Naked Turns 21 | . . . . 14 . . 7 . . . Heaviest Build 30 | 12 19 16 16 30 6 6 27 1 22 22 Greatest Support 49 | 20 20 32 12 41 3 3 49 15 33 45 Greatest Overweight (x) 7 | . . 2 1 4 1 1 7 . . . Average Overweight (x) . | . . . 1 . . 1 . . . . Largest Inventory Capacity 10 | 8 8 8 8 10 5 5 5 5 5 5 Average Capacity 6 | 6 8 8 8 9 5 5 5 5 5 5 Most Carried 10 | 3 8 8 7 10 5 5 5 5 5 5 Average Carried 5 | 1 6 5 7 8 4 4 4 4 4 5 Final Capacity 8 | 8 8 8 8 5 5 5 5 5 5 5 Final Carried 7 | 3 7 7 7 5 5 5 4 5 5 5 Class Distribution -------------------- 61% | Mutant 27% | Scavenger-Mutant 8% | Hacker-Sprinter Dominant Class ---------------- Mutant | -10/Materials Scavenger-Mutant | -9/Materials Scavenger-Mutant | -9/Mines Scavenger-Mutant | -8/Materials Mutant | -7/Factory Mutant | -7/DSF Mutant | -6/Factory Mutant | -6/Waste Hacker-Sprinter | -6/Factory Hacker-Sprinter | -6/Extension Resources | -11 -10 -9 -9 -8 -7 -7 -6 -6 -6 -6 ----------- Run | Yrd Mat Mat Min Mat Fac DSF Fac Was Fac Ext Matter Collected 1609 | 260 66 292 . 138 . . 712 . 51 90 Remotely . | . . . . . . . . . . . Salvage Created 2064 | . 310 424 . 159 . . 1052 . 46 73 Parts 100 | . 21 23 . 13 . . 36 . 7 . Haulers Intercepted 4 | . 1 . . 1 . . 1 . . 1 Recyclers Shooed 3 | . 1 1 . 1 . . . . . . Parts Field Recycled . | . . . . . . . . . . . Retrieved Matter . | . . . . . . . . . . . Parts Self-Destructed . | . . . . . . . . . . . Prevented . | . . . . . . . . . . . Kills | -11 -10 -9 -9 -8 -7 -7 -6 -6 -6 -6 ------- Run | Yrd Mat Mat Min Mat Fac DSF Fac Was Fac Ext Combat Hostiles Destroyed 32 | . 8 4 . 2 . . 18 . . . Melee 3 | . . . . . . . 3 . . . Guns 16 | . 8 4 . 2 . . 2 . . . Cannons 2 | . . . . . . . 2 . . . Classes Destroyed 14 | . 5 2 . . . . 6 . 1 . Worker 7 | . 1 2 . . . . 2 . 2 . Builder 1 | . . . . . . . 1 . . . Tunneler 1 | . . . . . . . . . 1 . Hauler 4 | . 1 . . 1 . . 1 . . 1 Recycler 2 | . . 2 . . . . . . . . Mechanic 1 | . . . . . . . 1 . . . Watcher 2 | . 1 1 . . . . . . . . Swarmer 6 | . 6 . . . . . . . . . Saboteur 1 | . . . . . . . 1 . . . Grunt 11 | . 2 2 . . . . 7 . . . Sentry 9 | . . 2 . 2 . . 5 . . . Specialist 1 | . . . . . . . 1 . . . Hunter 3 | . . . . . . . 3 . . . Programmer 1 | . . . . . . . 1 . . . Best Kill Streak 7 | . 7 4 . 1 . . 3 . 3 1 Combat Bots Only 6 | . 6 3 . 1 . . 3 . . . Max Kills in Single Turn 2 | . 2 2 . 1 . . 1 . 1 1 Gunslinging 1 | . 1 . . . . . . . . . Exploded . | . . . . . . . . . . . Melee 1 | . . . . . . . 1 . . . Uniques/NPCs Destroyed . | . . . . . . . . . . . Combat | -11 -10 -9 -9 -8 -7 -7 -6 -6 -6 -6 -------- Run | Yrd Mat Mat Min Mat Fac DSF Fac Was Fac Ext Hostile Shots Fired 515 | . 25 21 . 79 . 2 386 . . 2 Missed 189 | . 6 4 . 24 . 1 153 . . 1 Damage Taken 4305 | . 200 221 . 1512 . 41 2313 . . 18 Core 1499 | . 34 25 . 536 . 41 845 . . 18 Absorbed by Shields . | . . . . . . . . . . . Ignored by Resistances 125 | . . . . . . . 125 . . . Core Remaining (%) 75 | 100 86 . 93 2 . 94 . . . . Volleys Fired 129 | . 31 24 . 41 . . 21 . 5 7 Largest 2 | . 2 2 . 2 . . 2 . 1 1 Hottest 118 | . 60 62 . 62 . . 118 . 53 53 Shots Fired 216 | . 62 48 . 65 . . 29 . 5 7 Gun 183 | . 62 44 . 64 . . 13 . . . Cannon 33 | . . 4 . 1 . . 16 . 5 7 Launcher . | . . . . . . . . . . . Special . | . . . . . . . . . . . Kinetic 178 | . 31 48 . 65 . . 22 . 5 7 Thermal 7 | . . . . . . . 7 . . . Explosive . | . . . . . . . . . . . Electromagnetic 31 | . 31 . . . . . . . . . Robot Hit Streak 14 | . 8 14 . 9 . . 13 . 2 9 Robot Miss Streak 6 | . 5 3 . 5 . . 6 . 1 . Penetration Max . | . . . . . . . . . . . Secondary Targets 1 | . 1 . . . . . . . . . Max Gunslinging Chain 1 | . 1 . . . . . . . . . Shots Hit Robots 193 | . 39 34 . 44 . . 66 . 3 7 Core Hits 76 | . 15 16 . 10 . . 30 . 3 2 Critical Kills 1 | . . . . . . . 1 . . . Critical Parts Destroyed 8 | . . . . . . . 8 . . . Critical Strikes 10 | . . . . . . . 9 . 1 . Blast 1 | . . . . . . . . . 1 . Smash 9 | . . . . . . . 9 . . . Melee Attacks 56 | . . . . 4 . . 52 . . . Impact 52 | . . . . . . . 52 . . . Slashing 4 | . . . . 4 . . . . . . Piercing . | . . . . . . . . . . . Sneak Attacks 5 | . . . . . . . 5 . . . Combat Hostiles . | . . . . . . . . . . . Follow-up Attacks 3 | . . . . 1 . . 2 . . . Damage Inflicted 4883 | . 604 514 . 785 . . 2688 . 78 214 Guns 1979 | . 555 470 . 735 . . 219 . . . Cannons 667 | . . 44 . 20 . . 311 . 78 214 Explosions 49 | . 49 . . . . . . . . . Melee 2187 | . . . . 29 . . 2158 . . . Ramming 1 | . . . . 1 . . . . . . Kinetic 2193 | . 234 514 . 755 . . 398 . 78 214 Thermal 181 | . 49 . . . . . 132 . . . Explosive . | . . . . . . . . . . . Electromagnetic 321 | . 321 . . . . . . . . . Impact 2158 | . . . . . . . 2158 . . . Slashing 29 | . . . . 29 . . . . . . Piercing . | . . . . . . . . . . . Highest Corruption 8 | . . . . 3 . . 3 8 8 8 Average Corruption 3 | . . . . 2 . . 2 6 8 8 Corruption Purged . | . . . . . . . . . . . Corruption Blocked . | . . . . . . . . . . . Effects 22 | . . . . 1 . . 12 2 3 4 Message Errors 6 | . . . . . . . 2 1 1 2 Matter Fused 4 | . . . . . . . 4 . . . Heat Flow Errors 4 | . . . . . . . 2 . . 2 Energy Discharges 4 | . . . . . . . 2 1 1 . Parts Rejected 1 | . . . . 1 . . . . . . Data Loss (minor) 2 | . . . . . . . 2 . . . Data Loss (major) 1 | . . . . . . . . . 1 . Overload Shots . | . . . . . . . . . . . Overflow Damage 741 | . . . . . . . 741 . . . Projectiles 15 | . . . . . . . 15 . . . Explosions . | . . . . . . . . . . . Melee 726 | . . . . . . . 726 . . . Knockbacks 14 | . . . . . . . 14 . . . Impact 10 | . . . . . . . 10 . . . Kinetic 1 | . . . . . . . 1 . . . Secondary 3 | . . . . . . . 3 . . . Self-Inflicted Damage 19 | . 19 . . . . . . . . . Shots 1 | . 1 . . . . . . . . . Rammed 2 | . . . . 2 . . . . . . Targets Rammed 2 | . . . . 2 . . . . . . Kicked . | . . . . . . . . . . . Crushed . | . . . . . . . . . . . Highest Temperature 203 | . 54 26 . 20 . . 189 . . 203 Average Temperature 24 | . 26 9 . 6 . . 75 . . 79 Received Heat Transfer 906 | . 54 96 . 306 . . 441 . . 9 Siege Activations . | . . . . . . . . . . . Robots Corrupted . | . . . . . . . . . . . Combat Hostiles . | . . . . . . . . . . . Parts Fried 14 | . 1 . . . . . 13 . . . Impact Corruptions 30 | . . . . . . . 30 . . . Robots Melted . | . . . . . . . . . . . Combat Hostiles . | . . . . . . . . . . . Parts Melted . | . . . . . . . . . . . Heat Transferred 301 | . 100 . . . . . 201 . . . Parts Sabotaged 2 | . . . . . . . 2 . . . Parts Stolen . | . . . . . . . . . . . Parts Stripped . | . . . . . . . . . . . Power Chain Reactions 2 | . 2 . . . . . . . . . Alert | -11 -10 -9 -9 -8 -7 -7 -6 -6 -6 -6 ------- Run | Yrd Mat Mat Min Mat Fac DSF Fac Was Fac Ext Peak Influence 447 | . 219 326 126 193 5 18 447 172 138 102 Initial 127 | . . 92 126 48 . 3 9 127 120 67 Average 153 | . 149 219 126 81 . 3 198 147 127 87 Maximum Alert Level 2 | . 1 1 . . . . 2 . . . Low Security (%) 64 | 100 47 40 100 100 100 100 45 100 100 100 Level 1 29 | . 52 59 . . . . 40 . . . Level 2 6 | . . . . . . . 14 . . . Level 3 . | . . . . . . . . . . . Level 4 . | . . . . . . . . . . . Level 5 . | . . . . . . . . . . . High Security . | . . . . . . . . . . . Max Security . | . . . . . . . . . . . Squads Dispatched 11 | . . 2 . 1 . . 8 . . . Investigation 2 | . . 1 . . . . 1 . . . Extermination 1 | . . . . . . . 1 . . . Reinforcement 2 | . . 1 . 1 . . . . . . Assault . | . . . . . . . . . . . Garrison 6 | . . . . . . . 6 . . . Intercept . | . . . . . . . . . . . Searches Triggered . | . . . . . . . . . . . Construction Impeded . | . . . . . . . . . . . Haulers Reinforced . | . . . . . . . . . . . Active Scanning Responses . | . . . . . . . . . . . Cargo Convoy Interrupts 1 | . . . . . . . 1 . . . Stealth | -11 -10 -9 -9 -8 -7 -7 -6 -6 -6 -6 --------- Run | Yrd Mat Mat Min Mat Fac DSF Fac Was Fac Ext Distress Signals 5 | . . 1 . 2 . . 1 . . 1 Communications Jammed . | . . . . . . . . . . . Distress Signals . | . . . . . . . . . . . Times Spotted 86 | . 11 13 . 9 . . 39 6 . 8 Peak Tracking Total 12 | . 6 4 . 5 . 1 12 6 . 10 Tactical Retreats 9 | . . 1 . . . 1 7 . . . Traps | -11 -10 -9 -9 -8 -7 -7 -6 -6 -6 -6 ------- Run | Yrd Mat Mat Min Mat Fac DSF Fac Was Fac Ext Traps Triggered 5 | . . 1 . 3 . . 1 . . . Indirectly . | . . . . . . . . . . . Trap Hack Attempts . | . . . . . . . . . . . Triggered . | . . . . . . . . . . . Disarmed . | . . . . . . . . . . . Reprogrammed . | . . . . . . . . . . . Reused . | . . . . . . . . . . . Traps Extracted . | . . . . . . . . . . . Installed . | . . . . . . . . . . . Triggered . | . . . . . . . . . . . Machines | -11 -10 -9 -9 -8 -7 -7 -6 -6 -6 -6 ---------- Run | Yrd Mat Mat Min Mat Fac DSF Fac Was Fac Ext Machines Disabled . | . . . . . . . . . . . Max in Single Turn . | . . . . . . . . . . . Machines Repaired . | . . . . . . . . . . . Machines Dismantled . | . . . . . . . . . . . Machines Sabotaged . | . . . . . . . . . . . Overloaded Fab Kills . | . . . . . . . . . . . Hacking | -11 -10 -9 -9 -8 -7 -7 -6 -6 -6 -6 --------- Run | Yrd Mat Mat Min Mat Fac DSF Fac Was Fac Ext Machines Accessed 17 | . 2 2 . 3 1 . 8 . 1 . Terminals 8 | . 2 1 . 1 1 . 3 . . . Fabricators 1 | . . . . . . . 1 . . . Repair Stations 1 | . . . . . . . 1 . . . Recycling Units 2 | . . . . 1 . . 1 . . . Scanalyzers 4 | . . 1 . 1 . . 1 . 1 . Garrison Access 1 | . . . . . . . 1 . . . Total Hacks 42 | . 5 4 . 7 1 . 16 . 9 . Successful 23 | . 2 1 . 4 1 . 6 . 9 . Failed 19 | . 3 3 . 3 . . 10 . . . Catastrophic 2 | . . . . . . . 2 . . . Database Lockouts . | . . . . . . . . . . . Manual 8 | . 4 . . . . . 3 . 1 . Terminals 17 | . 5 2 . 2 1 . 7 . . . Fabricators 1 | . . . . . . . 1 . . . Repair Stations 1 | . . . . . . . 1 . . . Recycling Units 5 | . . . . 3 . . 2 . . . Scanalyzers 15 | . . 2 . 2 . . 2 . 9 . Garrison Access 3 | . . . . . . . 3 . . . Terminal Hacks 6 | . 1 1 . 1 1 . 2 . . . Record 2 | . . . . . . . 2 . . . Robot Analysis 1 | . 1 . . . . . . . . . Open DSF 1 | . . . . . 1 . . . . . Locate Traps 1 | . . . . 1 . . . . . . Hauler Manifests 1 | . . 1 . . . . . . . . Fabricator Hacks 1 | . . . . . . . 1 . . . Network Status 1 | . . . . . . . 1 . . . Repair Station Hacks . | . . . . . . . . . . . Recycling Unit Hacks 3 | . . . . 2 . . 1 . . . Report Inventory 2 | . . . . 1 . . 1 . . . Retrieve Components 1 | . . . . 1 . . . . . . Scanalyzer 12 | . . . . 1 . . 2 . 9 . Insert Component 7 | . . . . 1 . . 1 . 5 . Analyze 5 | . . . . . . . 1 . 4 . Garrison Access Hacks . | . . . . . . . . . . . Unauthorized Hacks 1 | . 1 . . . . . . . . . Terminals 1 | . 1 . . . . . . . . . Botnet 1 | . 1 . . . . . . . . . Fabricators . | . . . . . . . . . . . Repair Stations . | . . . . . . . . . . . Recycling Units . | . . . . . . . . . . . Scanalyzers . | . . . . . . . . . . . Garrison Access . | . . . . . . . . . . . Data Cores Recovered . | . . . . . . . . . . . Used . | . . . . . . . . . . . Hacking Detections 14 | . 2 2 . 3 . . 7 . . . Full Trace Events 2 | . . 1 . . . . 1 . . . Feedback Events . | . . . . . . . . . . . Feedback Blocked . | . . . . . . . . . . . Robot Schematics Acquired . | . . . . . . . . . . . Robots Built . | . . . . . . . . . . . Authchips . | . . . . . . . . . . . Time . | . . . . . . . . . . . Total Robot Build Rating . | . . . . . . . . . . . Part Schematics Acquired 5 | . . . . . . . 1 . 4 . Parts Built . | . . . . . . . . . . . Authchips . | . . . . . . . . . . . Time . | . . . . . . . . . . . Total Part Build Rating . | . . . . . . . . . . . Parts Repaired . | . . . . . . . . . . . Time . | . . . . . . . . . . . Parts Recycled . | . . . . . . . . . . . Recycled Matter . | . . . . . . . . . . . Retrieved Matter . | . . . . . . . . . . . Retrieved Components 3 | . . . . 3 . . . . . . Parts Scanalyzed 5 | . . . . . . . 1 . 4 . Part Schematics Acquired 5 | . . . . . . . 1 . 4 . Parts Damaged . | . . . . . . . . . . . Bothacking | -11 -10 -9 -9 -8 -7 -7 -6 -6 -6 -6 ------------ Run | Yrd Mat Mat Min Mat Fac DSF Fac Was Fac Ext Used RIF Installer . | . . . . . . . . . . . Robots Hacked . | . . . . . . . . . . . Non-combat . | . . . . . . . . . . . Combat . | . . . . . . . . . . . Robot Hacks Applied . | . . . . . . . . . . . Relay Couplers Released . | . . . . . . . . . . . Fabnet Peak Effective % . | . . . . . . . . . . . Robots Rewired . | . . . . . . . . . . . Allies Hacked . | . . . . . . . . . . . Hacks Repelled . | . . . . . . . . . . . Allies | -11 -10 -9 -9 -8 -7 -7 -6 -6 -6 -6 -------- Run | Yrd Mat Mat Min Mat Fac DSF Fac Was Fac Ext Total Allies . | . . . . . . . . . . . Largest Group . | . . . . . . . . . . . Highest-Rated Group . | . . . . . . . . . . . Highest-Rated Ally . | . . . . . . . . . . . Total Orders . | . . . . . . . . . . . Ally Attacks . | . . . . . . . . . . . Total Damage . | . . . . . . . . . . . Kills . | . . . . . . . . . . . Allies Corrupted . | . . . . . . . . . . . Allies Melted . | . . . . . . . . . . . Intel | -11 -10 -9 -9 -8 -7 -7 -6 -6 -6 -6 ------- Run | Yrd Mat Mat Min Mat Fac DSF Fac Was Fac Ext Robot Analysis Total 1 | . 1 . . . . . . . . . Derelict Logs Recovered . | . . . . . . . . . . . Drone Launches . | . . . . . . . . . . . Drone Recoveries . | . . . . . . . . . . . Exploration | -11 -10 -9 -9 -8 -7 -7 -6 -6 -6 -6 ------------- Run | Yrd Mat Mat Min Mat Fac DSF Fac Was Fac Ext Turns Passed 2844 | 73 298 241 53 484 39 66 1320 42 73 155 Spaces Moved 2430 | 53 161 205 43 282 48 64 1018 96 175 285 Core 829 | 2 . . . 35 48 64 680 . . . Treads 109 | . . . . . . . 109 . . . Legs 212 | 51 161 . . . . . . . . . Wheels 199 | . . 57 . 142 . . . . . . Hover 152 | . . 4 43 105 . . . . . . Flight 929 | . . 144 . . . . 229 96 175 285 Fastest Speed 14 | 50 120 34 126 50 50 100 29 29 26 14 Average Speed 80 | 117 120 59 126 108 73 100 95 33 30 25 Slowest Speed 400 | 120 120 190 126 250 100 100 400 35 32 26 Overloaded Moves 16 | . . . . . . . . 13 . 3 Propulsion Burnouts . | . . . . . . . . . . . Robots Hopped 7 | . . 2 . . . . 1 . . 4 Cave-ins Triggered . | . . . . . . . . . . . Exploration Rate (%) 26 | 4 34 25 22 28 1 51 19 81 5 23 Regions Visited 10 Branch Regions 2 Pre-discovered Areas . | . . . . . . . . . . . Known Exits Taken 1 | . . . . . 1 . . . . . Unknown Exits Taken 6 | 1 1 1 1 1 . . . . 1 . Scrap Searched . | . . . . . . . . . . . Spaces Dug . | . . . . . . . . . . . Terrain Destroyed 10 | . 9 1 . . . . . . . . Melee . | . . . . . . . . . . . Projectile 1 | . . 1 . . . . . . . . AOE 9 | . 9 . . . . . . . . . Terrain Rammed . | . . . . . . . . . . . Walls Destroyed . | . . . . . . . . . . . Machines Disabled . | . . . . . . . . . . . Actions | -11 -10 -9 -9 -8 -7 -7 -6 -6 -6 -6 --------- Run | Yrd Mat Mat Min Mat Fac DSF Fac Was Fac Ext Total 3004 | 61 205 282 42 404 51 67 1247 104 186 355 Wait 227 | . 4 20 . 34 . . 97 5 . 67 Move 2408 | 52 160 200 42 281 47 63 1016 95 174 278 Hop 6 | . . 2 . . . . 1 . . 3 Pick Up 46 | 3 6 7 . 12 2 2 11 2 1 . Fast Attach 44 | 6 . 5 . 2 . . 26 1 4 . Attach 27 | . . 10 . 7 2 . 6 1 1 . Detach 16 | . . 8 . 3 . . 5 . . . Swap 11 | . 1 1 . 7 . . 1 . 1 . Drop 36 | . 3 5 . 12 . 2 14 . . . Fire 129 | . 31 24 . 41 . . 21 . 5 7 Melee 52 | . . . . 3 . . 49 . . . Ram 2 | . . . . 2 . . . . . . Kick . | . . . . . . . . . . . Crush . | . . . . . . . . . . . Escape Stasis . | . . . . . . . . . . . Rewire . | . . . . . . . . . . . Trap . | . . . . . . . . . . . Miscellaneous . | . . . . . . . . . . . Route ------- -11/Scrapyard -10/Materials -9/Materials -9/Mines -8/Materials -7/Factory -7/DSF -6/Factory -6/Waste -6/Factory -6/Extension History --------- Turn | Location | Event 14 | -11/Scrapyard | Discovered new exit (range 14) 74 | -11/Scrapyard | Entered Materials 301 | -10/Materials | Build established: Mutant 353 | -10/Materials | Discovered new exit (range 16) 372 | -10/Materials | Entered another Materials area 372 | -9/Materials | Evolved 2 slots: Propulsion x2 544 | -9/Materials | Lost 4 parts (1p3n) 580 | -9/Materials | Discovered new exit (range 12) 613 | -9/Materials | Entered Mines 658 | -9/Mines | Discovered new exit (range 9) 666 | -9/Mines | Entered Materials 666 | -8/Materials | Evolved 2 slots: Utility x2 827 | -8/Materials | Build established: Scavenger-Mutant 1120 | -8/Materials | Core integrity fell below 50% 1134 | -8/Materials | Core integrity fell below 20% 1136 | -8/Materials | Released all parts (1) 1145 | -8/Materials | Discovered new exit (range 10) 1150 | -8/Materials | Entered Factory 1150 | -7/Factory | Evolved 2 slots: Utility x2 1157 | -7/Factory | Lost 12 parts (4n4u4w) 1188 | -7/Factory | Identified exit to DSF 1189 | -7/Factory | Entered DSF 1236 | -7/DSF | Discovered new exit (range 11) 1244 | -7/DSF | Additional patrols routed to DSF 1255 | -7/DSF | Entered Factory 1255 | -6/Factory | Evolved 2 slots: Utility x1, Weapon x1 1300 | -6/Factory | Build established: Mutant 1703 | -6/Factory | Released all parts (3) 1889 | -6/Factory | Garrison activated, responded to threat 2052 | -6/Factory | Core integrity fell below 50% 2169 | -6/Factory | Cargo convoy interrupted 2241 | -6/Factory | Lost 5 parts (1p2n1u1w) 2270 | -6/Factory | Core integrity fell below 20% 2316 | -6/Factory | Lost 4 parts (1p1u2w) 2575 | -6/Factory | Sucked down chute 2575 | -6/Factory | Entered Waste 2580 | -6/Waste | Found Prototype Processor 2580 | -6/Waste | Identified Exp. Targeting Computer 2586 | -6/Waste | Spotted C-40 Crusher 2590 | -6/Waste | EMP discharged 2590 | -6/Waste | Spotted C-40 Crusher 2593 | -6/Waste | Spotted C-40 Crusher 2593 | -6/Waste | Spotted C-40 Crusher 2598 | -6/Waste | Spotted C-40 Crusher 2608 | -6/Waste | Spotted C-40 Crusher 2610 | -6/Waste | Discovered new exit (range 14) 2617 | -6/Waste | Entered Factory 2683 | -6/Factory | Discovered new exit (range 12) 2690 | -6/Factory | Entered Extension 2815 | -6/Extension | Spotted B-75 Beast 2815 | -6/Extension | Spotted B-75 Beast 2845 | -6/Extension | Destroyed by G-50 Soldier with Heavy Laser Last Messages --------------- 02680_ Acquired 5 matter. 02683_ EXIT=FOUND 02685_ Acquired Prototype Engine. 02686_ Identified F-cell Engine. 02689_ Connecting with Door Terminal... LOCATION=UNKNOWN GOAL=ESCAPE 02708_ RU9TDZKEGAU9GHXEUIG&Y#U4K